fUSD/lending_fUSD_20250923
["ID","MTS","AMOUNT","RATE_DAILY","PERIOD"]
[387178114,1758607832975,-500.0,0.0002,2]
[387178115,1758607832985,-719.65164411,0.0002,2]
[387178116,1758607832996,-150.39,0.0002,2]
[387178117,1758607833006,-150.39,0.0002,2]
[387178118,1758607833016,-1000.0,0.00020165,2]
[387178119,1758607833027,-152.93,0.0002027,2]
[387178120,1758607833037,-224.3,0.00020343,2]
[387178121,1758607833048,-500.0,0.00020433,2]
[387178122,1758607833059,-200.0,0.00020473,2]
[387178123,1758607833069,-200.0,0.00020473,2]
[387178124,1758607833079,-500.0,0.00020473,2]
[387178125,1758607833089,-322.6107,0.00020473,2]
[387178126,1758607833099,-500.0,0.00020473,2]
[387178127,1758607833110,-500.0,0.00020473,2]
[387178128,1758607833120,-500.0,0.00020473,2]
[387178129,1758607833130,-151.0,0.00020473,2]
[387178130,1758607833140,-500.0,0.00020473,2]
[387178131,1758607833149,-300.0,0.00020473,2]
[387178132,1758607833159,-500.0,0.00020473,2]
[387178133,1758607833169,-500.0,0.00020473,2]
[387178134,1758607833179,-500.0,0.00020473,2]
[387178135,1758607833189,-500.0,0.00020473,2]
[387178136,1758607833199,-500.0,0.00020473,2]
[387178137,1758607833210,-362.58606365,0.00020473,2]
[387178138,1758607833220,-500.0,0.00020473,2]
[387178139,1758607833229,-1000.0,0.00020484,2]
[387178140,1758607833239,-1000.0,0.00020484,2]
[387178141,1758607833251,-814.0,0.00020485,2]
[387178142,1758607833265,-899.0,0.00020485,2]
[387178143,1758607833275,-1179.0,0.00020485,2]
[387178144,1758607833287,-4231.0,0.00020485,2]
[387178145,1758607833298,-3065.0,0.00020485,2]
[387178146,1758607833308,-727.0,0.00020485,2]
[387178147,1758607833318,-2290.978,0.00020485,2]
[387178148,1758607833328,-4177.0,0.00020485,2]
[387178149,1758607833338,-500.0,0.00020491,2]
[387178150,1758607833347,-500.0,0.00020491,2]
[387178151,1758607833357,-506.24215238,0.00020491,2]
[387178152,1758607833366,-500.0,0.00020491,2]
[387178153,1758607833376,-500.0,0.0002052,2]
[387178154,1758607833386,-287.67924274,0.0002052,2]
[387178155,1758607833396,-150.0,0.00020535,7]
[387178156,1758607833407,-503.91370159,0.00020567,2]
[387178157,1758607833416,-500.0,0.00020571,2]
[387178158,1758607833426,-500.0,0.00020571,2]
[387178159,1758607833436,-500.0,0.00020571,2]
[387178160,1758607833446,-500.0,0.00020571,2]
[387178161,1758607833456,-500.0,0.00020571,2]
[387178162,1758607833466,-500.0,0.00020571,2]
[387178163,1758607833476,-500.0,0.00020571,2]
[387178164,1758607833485,-232.22792707,0.00020571,2]
[387178165,1758607833495,-500.0,0.00020571,2]
[387178166,1758607833505,-500.0,0.00020571,2]
[387178167,1758607833515,-500.0,0.00020571,2]
[387178168,1758607833526,-500.0,0.00020571,2]
[387178169,1758607833536,-500.0,0.00020571,2]
[387178170,1758607833546,-500.0,0.00020571,2]
[387178171,1758607833556,-500.0,0.00020571,2]
[387178172,1758607833566,-364.93015461,0.00020571,2]
[387178173,1758607833576,-500.0,0.00020571,2]
[387178174,1758607833586,-500.0,0.00020571,2]
[387178175,1758607833596,-500.0,0.00020571,2]
[387178176,1758607833606,-500.0,0.00020571,2]
[387178177,1758607833616,-500.0,0.00020571,2]
[387178178,1758607833625,-500.0,0.00020571,2]
[387178179,1758607833636,-500.0,0.00020571,2]
[387178180,1758607833646,-500.0,0.00020571,2]
[387178181,1758607833655,-500.0,0.00020571,2]
[387178182,1758607833665,-500.0,0.00020571,2]
[387178183,1758607833676,-500.0,0.00020571,2]
[387178184,1758607833685,-500.0,0.00020571,2]
[387178185,1758607833695,-500.0,0.00020571,2]
[387178186,1758607833704,-500.0,0.00020571,2]
[387178187,1758607833714,-500.0,0.00020571,2]
[387178188,1758607833725,-9931.82269112,0.00020572,2]
[387178189,1758607833736,-500.0,0.0002058,2]
[387178190,1758607833746,-150.0,0.00020596,2]
[387178191,1758607833756,-154.04,0.00020626,2]
[387178192,1758607833766,-674.50089774,0.00020655,2]
[387178193,1758607833777,-1262.0,0.00020656,2]
[387178194,1758607833787,-3394.0,0.00020656,2]
[387178195,1758607833797,-2042.0,0.00020656,2]
[387178196,1758607833807,-786.0,0.00020656,2]
[387178197,1758607833817,-1582.0,0.00020656,2]
[387178198,1758607833827,-569.0,0.00020656,2]
[387178199,1758607833837,-1305.0,0.00020656,2]
[387178200,1758607833846,-602.0,0.00020656,2]
[387178201,1758607833856,-516.64379166,0.00020658,2]
[387178202,1758607833866,-358.4372,0.00020668,2]
[387178203,1758607833876,-506.77096948,0.00020716,2]
[387178204,1758607833886,-300.0,0.00020716,2]
[387178205,1758607833895,-195.0,0.00020716,2]
[387178206,1758607833905,-2500.0,0.00020716,2]
[387178207,1758607833914,-195.0,0.00020716,2]
[387178208,1758607833924,-2500.0,0.00020716,2]
[387178209,1758607833934,-2599.95717135,0.00020716,2]
[387178210,1758607833944,-500.0,0.0002072,2]
[387178211,1758607833954,-502.09479516,0.0002072,2]
[387178212,1758607833964,-500.0,0.0002072,2]
[387178213,1758607833974,-500.0,0.0002072,2]
[387178214,1758607833984,-2667.68463434,0.00020726,2]
[387178215,1758607834006,-1125.11807887,0.00020726,2]
[387178216,1758607834015,-420.0,0.00020792,2]
[387178217,1758607834026,-152.93,0.00020816,2]
[387178218,1758607834036,-345.09520019,0.00020837,2]
[387178219,1758607834045,-632.83347917,0.0002084,2]
[387178220,1758607834055,-173.28,0.00020841,2]
[387178221,1758607834064,-1680.0,0.00020893,2]
[387178222,1758607834074,-225.84324484,0.00020897,2]
[387178223,1758607834098,-40.62675516,0.00020897,2]
[387178224,1758607834108,-2531.71585183,0.00020961,2]
[387178225,1758607834117,-500.0,0.00020985,2]
[387178226,1758607834127,-300.0,0.00020985,2]
[387178227,1758607834136,-1000.0,0.00020986,2]
[387178228,1758607834146,-9565.9596198,0.00021,2]
[387178229,1758607834156,-1002.41953048,0.00021039,2]
[387178230,1758607834166,-1000.0,0.00021039,2]
[387178231,1758607834176,-444.20197652,0.00021039,2]
[387178232,1758607834186,-4564.335971,0.00021061,2]
[387178233,1758607834195,-503.78209487,0.00021068,2]
[387178234,1758607834206,-200.0,0.00021075,2]
[387178235,1758607834216,-1000.0,0.00021119,2]
[387178236,1758607834226,-1000.0,0.00021119,2]
[387178237,1758607834238,-1000.0,0.00021128,2]
[387178238,1758607834251,-3233.54,0.00021181,2]
[387178239,1758607834261,-1000.0,0.00021268,2]
[387178240,1758607834271,-1000.0,0.00021268,2]
[387178241,1758607834283,-257.91778498,0.00021357,2]
[387178242,1758607834293,-213.22,0.00021358,2]
[387178243,1758607834304,-433.5,0.0002139,2]
[387178244,1758607834314,-154.04,0.00021523,2]
[387178245,1758607834325,-1551.2,0.00021554,2]
[387178246,1758607834335,-1500.0,0.00021587,2]
[387178247,1758607834346,-517.12511285,0.00021666,2]
[387178248,1758607834356,-165.98528173,0.00021666,2]
[387178249,1758607834367,-1000.0,0.00021676,2]
[387178250,1758607834376,-1000.0,0.00021773,2]
[387178251,1758607834386,-460.6472163,0.00021816,2]
[387178252,1758607834396,-502.20542094,0.00021816,2]
[387178253,1758607834406,-334.5472959,0.00021842,2]
[387178254,1758607834416,-2014.9449876,0.000219,2]
[387178255,1758607834428,-1424.9350124,0.000219,2]
[387178256,1758607834438,-184.50226902,0.00021902,2]
[387178257,1758607834447,-963.309,0.00021902,2]
[387178258,1758607834457,-5000.0,0.00021918,2]
[387178259,1758607834467,-1000.0,0.00021932,2]
[387178260,1758607834480,-1009.85,0.00021945,30]
[387178261,1758607834491,-151.54,0.00022,2]
[387178262,1758607834501,-151.1,0.00022,2]
[387178263,1758607834511,-338.0,0.00022,2]
[387178264,1758607834521,-600.0,0.0002211,2]
[387178265,1758607834531,-2000.0,0.00022135,2]
[387178266,1758607834540,-338.0,0.00022192,7]
[387178267,1758607834550,-2531.71585174,0.00022274,2]
[387178268,1758607834560,-168.0,0.00022285,2]
[387178269,1758607834570,-168.0,0.00022355,2]
[387178270,1758607834580,-851.28127352,0.00022372,2]
[387178271,1758607834589,-617.62203528,0.00022386,2]
[387178272,1758607834599,-168.0,0.00022407,2]
[387178273,1758607834608,-213.22,0.00022426,2]
[387178274,1758607834617,-338.0,0.00022466,7]
[387178275,1758607834627,-644.35798936,0.00022487,2]
[387178276,1758607834637,-168.0,0.00022559,2]
[387178277,1758607834647,-1000.0,0.0002256,2]
[387178278,1758607834656,-617.62203528,0.00022599,2]
[387178279,1758607834666,-600.0,0.00022658,2]
[387178280,1758607834677,-587.0,0.00022662,2]
[387178281,1758607834686,-2500.0,0.00022683,2]
[387178282,1758607834697,-242.16532158,0.00022726,2]
[387178283,1758607834706,-338.0,0.0002274,7]
[387178284,1758607834716,-9066.881514,0.0002284,2]
[387178285,1758607834726,-2351.0,0.00022882,2]
[387178286,1758607834735,-168.0,0.00022962,2]
[387178287,1758607834745,-617.62203528,0.00023009,2]
[387178288,1758607834754,-150.0,0.0002301,2]
[387178289,1758607834763,-500.0,0.0002301,2]
[387178290,1758607834775,-500.0,0.0002301,2]
[387178291,1758607834785,-150.0,0.0002301,2]
[387178292,1758607834794,-1345.0,0.0002301,2]
[387178293,1758607834804,-150.0,0.0002301,2]
[387178294,1758607834814,-500.0,0.0002301,2]
[387178295,1758607834823,-150.0,0.0002301,2]
[387178296,1758607834833,-500.0,0.0002301,2]
[387178297,1758607834842,-150.0,0.0002301,2]
[387178298,1758607834851,-150.0,0.0002301,2]
[387178299,1758607834861,-150.0,0.0002301,2]
[387178300,1758607834871,-150.0,0.0002301,2]
[387178301,1758607834881,-500.0,0.0002301,2]
[387178302,1758607834890,-150.0,0.0002301,2]
[387178303,1758607834900,-150.0,0.0002301,2]
[387178304,1758607834910,-150.0,0.0002301,2]
[387178305,1758607834919,-150.0,0.0002301,2]
[387178306,1758607834929,-150.0,0.0002301,2]
[387178307,1758607834939,-150.0,0.0002301,2]
[387178308,1758607834949,-152.97299391,0.0002301,2]
[387178309,1758607834958,-150.0,0.0002301,2]
[387178310,1758607834968,-150.0,0.0002301,2]
[387178311,1758607834978,-150.0,0.0002301,2]
[387178312,1758607834987,-150.0,0.0002301,2]
[387178313,1758607834997,-150.0,0.0002301,2]
[387178314,1758607835006,-150.0,0.0002301,2]
[387178315,1758607835016,-150.0,0.0002301,2]
[387178316,1758607835027,-500.0,0.0002301,2]
[387178317,1758607835037,-500.0,0.0002301,2]
[387178318,1758607835047,-150.0,0.0002301,2]
[387178319,1758607835057,-500.0,0.0002301,2]
[387178320,1758607835067,-150.0,0.0002301,2]
[387178321,1758607835076,-153.23903867,0.0002301,2]
[387178322,1758607835086,-500.0,0.0002301,2]
[387178323,1758607835096,-500.0,0.0002301,2]
[387178324,1758607835106,-500.0,0.0002301,2]
[387178325,1758607835115,-152.22357446,0.0002301,2]
[387178326,1758607835125,-150.0,0.0002301,2]
[387178327,1758607835134,-500.0,0.0002301,2]
[387178328,1758607835143,-150.0,0.0002301,2]
[387178329,1758607835153,-150.0,0.0002301,2]
[387178330,1758607835162,-150.0,0.0002301,2]
[387178331,1758607835172,-500.0,0.0002301,2]
[387178332,1758607835182,-500.0,0.0002301,2]
[387178333,1758607835191,-338.0,0.00023014,7]
[387178334,1758607835201,-338.0,0.00023014,7]
[387178335,1758607835211,-183.22492003,0.00023016,2]
[387178336,1758607835220,-1014.26674001,0.00023017,2]
[387178337,1758607835231,-213.64600479,0.00023024,2]
[387178338,1758607835243,-988.228077,0.00023029,2]
[387178339,1758607835254,-196.44221555,0.00023033,2]
[387178340,1758607835264,-196.44221555,0.00023037,2]
[387178341,1758607835275,-213.64600479,0.00023048,2]
[387178342,1758607835284,-213.64600479,0.00023056,2]
[387178343,1758607835294,-196.44221555,0.00023058,2]
[387178344,1758607835304,-47120.76181382,0.00023064,2]
[387178348,1758607838229,-3785.42818167,0.00020485,2]
[387178350,1758607838673,-6421.24384716,0.00020485,2]
[387178364,1758607840443,-4196.00060228,0.00020485,2]
[387178365,1758607840456,-1679.69,0.00020485,2]
[387178366,1758607840472,-307.63662144,0.00020485,2]
[387178367,1758607840507,-615.79176526,0.00020485,2]
[387178368,1758607840567,-1888.20898219,0.00020485,2]
[387178369,1758607840578,-299.98011438,0.00020571,2]
[387178370,1758607840588,-5263.43773208,0.00023064,2]
[387178371,1758607840603,-21123.09971072,0.00023064,2]
[387178372,1758607840629,-21571.0,0.00023064,2]
[387178524,1758607843621,-500.0,0.0002057,2]
[387178525,1758607843633,-41.76615502,0.0002057,2]
[387178526,1758607843645,-458.23384498,0.0002057,2]
[387178527,1758607843654,-400.0,0.0002057,2]
[387178584,1758607879096,164.99,0.00011372,2]
[387178585,1758607879322,164.99,0.00013268,2]
[387178587,1758607879500,164.99,0.00015163,2]
[387178588,1758607879711,164.99,0.00017059,2]
[387178590,1758608118855,160.0,0.000301,120]
[387178591,1758608159090,-164.99,0.00018954,2]
[387178592,1758608159117,-1846.51864428,0.0001996,2]
[387178593,1758608159144,-224.67999092,0.0002047,2]
[387178594,1758608159173,-275.0,0.00020569,2]
[387178595,1758608159201,-205.80531827,0.0002057,2]
[387178596,1758608159229,-250.0,0.0002057,2]
[387178597,1758608159257,-152.33,0.0002057,2]
[387178598,1758608159284,-151.95,0.0002057,2]
[387178599,1758608159313,-516.64379166,0.00020686,2]
[387178600,1758608159342,-164.99,0.00020849,2]
[387178601,1758608159369,-1200.0,0.00020907,2]
[387178602,1758608159394,-642.641,0.00020908,2]
[387178603,1758608159420,-3394.0,0.00020908,2]
[387178604,1758608159449,-786.0,0.00020908,2]
[387178605,1758608159678,-1172.00222046,0.00020908,2]
[387178606,1758608301558,390.19967992,0.0003454,120]
[387178607,1758608540364,500.0,0.00013699,2]
[387178619,1758608767203,1564.56139073,0.00034542,120]
[387178625,1758608829696,2826.93997964,0.00015,2]
[387178626,1758608833141,18678.12007292,0.00015,2]
[387178627,1758608835569,205.0,9.8e-05,2]
[387178628,1758608838305,167.01,0.00010272,2]
[387178629,1758608839772,256.29974212,0.000101,2]
[387178635,1758608910666,1308809.14296517,0.00034542,60]
[387178637,1758608916736,-284.79968141,0.00019899,2]
[387178638,1758608916782,-73.04163718,0.00019899,2]
[387178639,1758608923699,-3394.0,0.00019899,2]
[387178640,1758608923748,671.29336167,0.0001,2]
[387178641,1758608923953,702.36737844,0.00034542,120]
[387178645,1758608930798,-786.0,0.00019899,2]
[387178646,1758608938724,-1172.00222046,0.00019899,2]
[387178647,1758608946507,-1200.0,0.00019899,2]
[387178687,1758609031657,-1929.27434144,0.00019899,2]
[387178689,1758609031667,-7889.93622458,0.000199,2]
[387178692,1758609031678,-500.0,0.00019973,2]
[387178694,1758609031688,-228.87,0.0001999,2]
[387178696,1758609031698,-228.87,0.0001999,2]
[387178698,1758609031708,-152.39,0.0001999,2]
[387178700,1758609031718,-152.39,0.0001999,2]
[387178702,1758609031728,-152.39,0.0001999,2]
[387178704,1758609031738,-1200.0,0.00019998,2]
[387178706,1758609031748,-300.0,0.00019998,2]
[387178708,1758609031757,-636.0,0.00019998,2]
[387178710,1758609031767,-2000.0,0.00019999,3]
[387178712,1758609031777,-549.12612749,0.00019999,2]
[387178720,1758609031883,-194.02866328,0.00019999,2]
[387178721,1758609031894,-190.89631345,0.00019999,2]
[387178722,1758609031908,-498.80137477,0.00019999,2]
[387178728,1758609032207,-319.00381442,0.00019999,2]
[387178729,1758609032218,-162.31953891,0.00019999,2]
[387178730,1758609032575,-86.13098747,0.00019999,2]
[387178731,1758609032585,-500.0,0.00019999,2]
[387178732,1758609032594,-500.0,0.00019999,2]
[387178733,1758609032603,-455.48079092,0.00019999,2]
[387178734,1758609032613,-500.0,0.00019999,2]
[387178735,1758609032622,-52.75380781,0.00019999,2]
[387178736,1758609032633,-447.24619219,0.00019999,2]
[387178737,1758609032643,-197.92478591,0.00019999,2]
[387178738,1758609032652,-343.14707635,0.00019999,2]
[387178739,1758609032662,-500.0,0.00019999,2]
[387178740,1758609032672,-500.0,0.00019999,2]
[387178741,1758609032681,-500.0,0.00019999,2]
[387178742,1758609032691,-433.10831124,0.00019999,2]
[387178743,1758609032701,-500.0,0.00019999,2]
[387178744,1758609032710,-500.0,0.00019999,2]
[387178745,1758609032719,-500.0,0.00019999,2]
[387178746,1758609032729,-500.0,0.00019999,2]
[387178747,1758609032738,-500.0,0.00019999,2]
[387178748,1758609032747,-500.0,0.00019999,2]
[387178749,1758609032757,-229.26372804,0.00019999,2]
[387178750,1758609032767,-500.0,0.00019999,2]
[387178751,1758609032776,-248.30784952,0.00019999,2]
[387178752,1758609032786,-571.0,0.0002,2]
[387178753,1758609032796,-15609.46247864,0.0002,2]
[387178754,1758609032826,-2558.27217871,0.0002,2]
[387178755,1758609032838,-697.96446557,0.0002,2]
[387178796,1758609039571,-159.6834909,0.000199,2]
[387178797,1758609039582,-1697.8668491,0.0002,2]
[387178798,1758609039657,-802388.5655082,0.0002,2]
[387178799,1758609039672,-17927.51534631,0.0002,2]
[387178806,1758609042945,-16268.09592923,0.0002,2]
[387178807,1758609043054,-529.3941732,0.0002,2]
[387178818,1758609045467,-11695.31064462,0.0002,2]
[387178829,1758609045959,-1151.4223584,0.0002,2]
[387178830,1758609045971,-3980.48912693,0.0002,2]
[387178838,1758609103390,-164.99,0.000196,2]
[387178839,1758609110618,-516.64379166,0.000196,2]
[387178840,1758609193075,-152.33,0.00019502,2]
[387178841,1758609200559,-151.95,0.00019502,2]
[387178842,1758609207625,-250.0,0.00019502,2]
[387178843,1758609215000,-205.80531827,0.00019502,2]
[387178844,1758609221994,-275.0,0.00019502,2]
[387178845,1758609333033,160.0,0.000301,120]
[387178846,1758609461656,1861.23365571,0.000185,2]
[387178861,1758609613556,150.0,0.0001925,7]
[387178862,1758609681139,-224.67999092,0.00019482,2]
[387178866,1758609822868,153.06,0.00015374,2]
[387178869,1758609958038,194225.98,0.00034561,60]
[387178870,1758609996105,318.2,0.00010007,2]
[387178871,1758609996304,318.2,0.00010533,2]
[387178872,1758609996523,318.2,0.0001106,2]
[387178873,1758609996716,318.2,0.00011587,2]
[387178874,1758609996925,318.2,0.00012113,2]
[387178875,1758609997129,318.2,0.0001264,2]
[387178876,1758609997562,318.2,0.00013167,2]
[387178877,1758609997775,318.2,0.00013693,2]
[387178878,1758609998001,318.2,0.0001422,2]
[387178879,1758609998196,318.2,0.00014747,2]
[387178880,1758609998403,318.2,0.00015273,2]
[387178881,1758609998606,318.2,0.000158,2]
[387178882,1758609998802,318.2,0.00016327,2]
[387178883,1758609998989,318.2,0.00016853,2]
[387178884,1758609999206,318.2,0.0001738,2]
[387178885,1758609999411,318.2,0.00017906,2]
[387178886,1758609999604,318.2,0.00018433,2]
[387178887,1758610012626,-318.04478174,0.0001896,2]
[387178889,1758610127238,-500.0,0.00018864,2]
[387178890,1758610134688,-500.0,0.00018864,2]
[387178891,1758610142644,-500.0,0.00018864,2]
[387178892,1758610157335,-197.76148915,0.00018864,2]
[387178893,1758610208415,-200.0,0.00021945,30]
[387178894,1758610229648,-68.57353685,0.00018864,2]
[387178895,1758610229680,-0.15521826,0.0001896,2]
[387178896,1758610229710,-234.55248978,0.00018999,2]
[387178897,1758610229722,-68.57353685,0.00018999,2]
[387178898,1758610229742,-0.15521826,0.00018999,2]
[387178899,1758610229790,-2024.70875511,0.00018999,2]
[387178900,1758610229799,-180.13,0.0001904,2]
[387178901,1758610229809,-123.15124489,0.00019044,2]
[387178911,1758610232385,-99.66875511,0.00019044,2]
[387178912,1758610232395,-318.04478174,0.00019089,2]
[387178913,1758610232404,-1635.76,0.00019105,2]
[387178914,1758610232414,-755.05,0.00019105,2]
[387178915,1758610232425,-250.0,0.0001911,2]
[387178916,1758610232434,-1000.0,0.00019128,2]
[387178917,1758610232445,-649.75,0.00019218,2]
[387178918,1758610232455,-205.80531827,0.00019482,2]
[387178919,1758610232464,-318.2,0.00019486,2]
[387178920,1758610232474,-1200.0,0.00019798,2]
[387178921,1758610232484,-224.67999092,0.00019799,2]
[387178922,1758610232493,-275.0,0.00019899,2]
[387178923,1758610232503,-367.0,0.00019899,2]
[387178924,1758610232513,-163.27239265,0.000199,2]
[387178925,1758610232523,-163.27239263,0.000199,2]
[387178926,1758610232533,-163.27239263,0.000199,2]
[387178927,1758610232543,-159.68349084,0.000199,2]
[387178928,1758610232553,-8623.55757117,0.000199,2]
[387178929,1758610232569,-223.00202924,0.000199,2]
[387178930,1758610232579,-24150.84575821,0.00019927,2]
[387178932,1758610232593,-500.0,0.00019973,2]
[387178934,1758610232604,-180.13,0.00019992,2]
[387178936,1758610232615,-151.0,0.00019997,2]
[387178938,1758610232625,-500.0,0.00019998,2]
[387178939,1758610232635,-500.0,0.00019998,2]
[387178940,1758610232645,-500.0,0.00019998,2]
[387178941,1758610232655,-500.0,0.00019998,2]
[387178942,1758610232666,-444.48836265,0.00019998,2]
[387178943,1758610232691,-55.51163735,0.00019998,2]
[387178944,1758610232701,-413.78750565,0.00019998,2]
[387178945,1758610232836,-86.21249435,0.00019998,2]
[387178946,1758610232846,-500.0,0.00019998,2]
[387178947,1758610232856,-500.0,0.00019998,2]
[387178948,1758610232866,-373.29512094,0.00019998,2]
[387178949,1758610232878,-126.70487906,0.00019998,2]
[387178950,1758610232891,-500.0,0.00019998,2]
[387178951,1758610232901,-500.0,0.00019998,2]
[387178952,1758610232911,-500.0,0.00019998,2]
[387178953,1758610232922,-500.0,0.00019998,2]
[387178954,1758610232933,-500.0,0.00019998,2]
[387178955,1758610232945,-642.74264668,0.00019998,2]
[387178956,1758610232955,-500.0,0.00019998,2]
[387178957,1758610232966,-500.0,0.00019998,2]
[387178958,1758610232976,-469.5188824,0.00019999,2]
[387178959,1758610232986,-8451.7687776,0.00019999,2]
[387178960,1758610232995,-689.262,0.00019999,2]
[387178961,1758610233005,-3913.27119,0.00019999,2]
[387178984,1758610240491,-20639.2906327,0.00019999,2]
[387178985,1758610240501,-9929.2953733,0.0002,2]
[387178986,1758610240539,-2261.98942123,0.0002,2]
[387178987,1758610240692,-466.13081933,0.0002,2]
[387178988,1758610240708,-699.65993792,0.0002,2]
[387178989,1758610240844,-2500.0,0.0002,2]
[387178990,1758610240879,-715.84337084,0.0002,2]
[387178992,1758610241033,-455.594999,0.0002,2]
[387179000,1758610242842,-1454.58384498,0.0002,2]
[387179001,1758610242853,-1300.95422002,0.0002,2]
[387179002,1758610242961,-65418.53258307,0.0002,2]
[387179003,1758610243166,-249.19972126,0.000199,2]
[387179005,1758610243176,-275.48458941,0.0002,2]
[387179013,1758610245944,-918.0,0.0002,2]
[387179014,1758610245963,-2263.8,0.0002,2]
[387179015,1758610245975,-1750.0,0.0002,2]
[387179016,1758610246013,-450.0,0.0002,2]
[387179017,1758610246042,-36460.02308608,0.0002,2]
[387179018,1758610246053,-40874.1297285,0.0002,2]
[387179019,1758610246076,-5018.805068,0.0002,2]
[387179020,1758610246193,-1159.3,0.0002,2]
[387179021,1758610246206,-4186.49569879,0.0002,2]
[387179039,1758610255207,308.68666198,0.0003,120]
[387179040,1758610348136,500.0,0.00013699,2]
[387179041,1758610452584,50000.0,0.00034573,60]
[387179042,1758610453233,-300.0,0.00018764,2]
[387179044,1758610460359,-68.8656,0.00018764,2]
[387179045,1758610460379,-68.8656,0.00019022,2]
[387179046,1758610460393,-296.16493548,0.00019022,2]
[387179047,1758610460687,-150.0,0.00021945,30]
[387179048,1758610532853,-431.1344,0.00019005,2]
[387179049,1758610586302,403.73,0.00030137,120]
[387179050,1758610659197,-500.0,0.00018964,3]
[387179051,1758610677395,-500.0,0.00018937,2]
[387179052,1758610684815,-500.0,0.00018937,2]
[387179053,1758610692766,-500.0,0.00018937,2]
[387179054,1758610700243,-500.0,0.00018937,2]
[387179055,1758610707489,-500.0,0.00018937,2]
[387179056,1758610714939,-200.0,0.00018779,2]
[387179057,1758610714974,-100.0,0.00018937,2]
[387179058,1758610721900,-500.0,0.00018733,2]
[387179059,1758610729394,-500.0,0.00018733,2]
[387179060,1758610731798,400.0,0.00030137,120]
[387179061,1758610736129,-212.6,0.00018733,2]
[387179062,1758610736159,-74.8,0.00018733,2]
[387179063,1758610743083,-500.0,0.00018937,2]
[387179064,1758610750544,-500.0,0.00018937,2]
[387179065,1758610757614,-148.6,0.00018937,2]
[387179066,1758610757638,-202.8,0.00018937,2]
[387179067,1758610764613,-17927.51534631,0.00018943,2]
[387179068,1758610771679,-500.0,0.00018943,2]
[387179069,1758610776606,400.0,0.00030137,120]
[387179070,1758610778823,-500.0,0.00018943,2]
[387179071,1758610785734,-500.0,0.00018943,2]
[387179072,1758610793011,-500.0,0.00018844,2]
[387179073,1758610800141,-500.0,0.00018844,2]
[387179074,1758610806169,4021.86778528,0.00034573,60]
[387179075,1758610807141,-120.31336356,0.00018844,2]
[387179076,1758610807182,-259.37327288,0.00018894,2]
[387179086,1758610814336,-40.62672712,0.00018894,2]
[387179087,1758610814370,-418.74654576,0.00018943,2]
[387179088,1758610836358,400.0,0.00030137,120]
[387179104,1758610921995,-500.0,0.00018782,2]
[387179105,1758610929398,-500.0,0.00018782,2]
[387179106,1758610936967,-500.0,0.00018782,2]
[387179107,1758610943841,-500.0,0.00018782,2]
[387179108,1758610950784,-500.0,0.00018782,2]
[387179109,1758610958816,-284.79968141,0.00018782,2]
[387179110,1758610965844,-0.54031859,0.00018782,2]
[387179111,1758610965884,-498.91936282,0.00018787,2]
[387179112,1758610968478,-236.65051089,0.00018696,2]
[387179113,1758610972184,-306.95947412,0.00018696,2]
[387179114,1758610972817,-500.0,0.00018696,2]